bitfinex/quotes_BTCUSD_20250303
["timestamp","ask_amount","ask_price","bid_price","bid_amount"]
[1741000855882,0.26908864,92982.0,92981.0,0.0001699]
[1741000856107,0.26908864,92982.0,92981.0,0.0011699]
[1741000856500,0.26908864,92982.0,92981.0,0.0041699]
[1741000857915,0.00776764,92982.0,92981.0,0.1654929]
[1741000858317,0.05,92985.0,92984.0,0.161318]
[1741000858683,0.05,92986.0,92985.0,0.161316]
[1741000858883,0.05,92986.0,92981.0,0.0041699]
[1741000858884,0.05,92988.0,92981.0,0.0041699]
[1741000859081,0.05,92985.0,92981.0,0.0011699]
[1741000859305,0.05,92985.0,92982.0,0.160321]
[1741000859723,0.05,92985.0,92984.0,0.005]
[1741000860121,0.05,92991.0,92984.0,0.005]
[1741000860353,0.06687336,92992.0,92991.0,0.161305]
[1741000860937,0.01687336,92992.0,92991.0,0.161305]
[1741000861143,0.01687336,92992.0,92991.0,0.17584585]
[1741000861935,0.01687336,92992.0,92991.0,0.17884585]
[1741000862321,0.01687336,92992.0,92991.0,0.17584585]
[1741000862541,0.01687336,92992.0,92991.0,0.18984585]
[1741000863116,0.01687336,92992.0,92991.0,0.19135095]
[1741000863363,0.01687336,92992.0,92991.0,0.18984585]
[1741000864744,0.00295981,93004.0,92991.0,0.18984585]
[1741000864745,0.00295981,93004.0,92992.0,0.01454085]
[1741000864945,6.1e-07,93008.0,93007.0,0.58951885]
[1741000865148,1e-07,93021.0,93020.0,0.574955]
[1741000865352,1e-07,93021.0,93020.0,0.91659585]
[1741000866524,0.00039996,93021.0,93020.0,0.91659585]
[1741000866728,0.00039996,93021.0,93020.0,0.92359585]
[1741000867123,0.00039996,93021.0,93020.0,0.80989585]
[1741000867745,0.00039996,93021.0,93020.0,0.495355]
[1741000867949,0.00039996,93021.0,93020.0,0.502355]
[1741000868150,9.6e-07,93021.0,93020.0,0.927655]
[1741000868303,9.6e-07,93021.0,93020.0,0.93594649]
[1741000868746,9.6e-07,93021.0,93020.0,0.92894649]
[1741000869100,9.6e-07,93021.0,93020.0,0.95048734]
[1741000869302,9.6e-07,93021.0,93020.0,0.93519585]
[1741000869582,0.05,93063.0,93020.0,0.93519585]
[1741000869583,0.05,93096.0,93064.0,0.461179]
[1741000869785,0.09682484,93065.0,93064.0,0.47571985]
[1741000870026,0.00598268,93065.0,93064.0,0.47571985]
[1741000870240,0.00011995,93065.0,93064.0,0.48663841]
[1741000871146,0.00011995,93065.0,93064.0,0.47571985]
[1741000871307,0.00011995,93065.0,93064.0,0.161179]
[1741000871518,0.21129695,93065.0,93064.0,0.007]
[1741000871933,0.05594489,93065.0,93058.0,0.161188]
[1741000872134,0.05594489,93065.0,93064.0,0.007]
[1741000872337,0.21712189,93065.0,93064.0,0.007]
[1741000872610,0.21712189,93065.0,93064.0,0.014]
[1741000872829,0.161219,93041.0,93034.0,0.16123]
[1741000872954,0.30594489,93065.0,93020.0,0.26793685]
[1741000872955,0.05,93042.0,93041.0,0.161219]
[1741000873165,0.05,93042.0,93029.0,0.214986]
[1741000873370,0.05,93042.0,93040.0,0.16122]
[1741000873581,0.05,93042.0,93041.0,0.161219]
[1741000873774,0.05,93042.0,93039.0,0.161222]
[1741000873975,0.05,93042.0,93040.0,0.16122]
[1741000874221,0.214931,93053.0,92955.0,0.00017]
[1741000874222,0.05,93034.0,92992.0,0.3271]
[1741000874553,0.05,93034.0,93029.0,0.214985]
[1741000874680,0.05,93034.0,93025.0,0.09588093]
[1741000875083,0.211245,93026.0,93025.0,0.09588093]
[1741000876502,0.211245,93026.0,93025.0,0.10288093]
[1741000876753,0.261245,93026.0,93025.0,0.10288093]
[1741000877198,0.561245,93026.0,93025.0,0.007]
[1741000877769,0.05,92993.0,92986.0,0.161314]
[1741000877941,0.161304,92992.0,92983.0,0.00039986]
[1741000878145,0.05,92993.0,92992.0,0.161304]
[1741000879262,0.05602595,92993.0,92992.0,0.168304]
[1741000879466,0.05,92993.0,92992.0,0.007]
[1741000879665,0.05602143,92993.0,92992.0,0.007]
[1741000879917,0.05602143,92993.0,92992.0,0.011]
[1741000880184,0.21732343,92993.0,92992.0,0.007]
[1741000880388,0.21732343,92993.0,92992.0,0.012]
[1741000880599,0.21732343,92993.0,92992.0,0.005]
[1741000880600,0.26732343,92993.0,92992.0,0.005]
[1741000880802,0.56732343,92993.0,92992.0,0.005]
[1741000881002,0.5841942,92993.0,92992.0,0.012]
[1741000881338,0.5841942,92993.0,92992.0,0.005]
[1741000881740,0.5841942,92993.0,92992.0,0.012]
[1741000881877,0.9082942,92993.0,92992.0,0.012]
[1741000882220,0.511318,92984.0,92983.0,0.00039986]
[1741000882622,0.51728989,92984.0,92983.0,0.00039986]
[1741000883381,0.56728989,92984.0,92983.0,0.00039986]
[1741000883662,0.96678989,92984.0,92983.0,0.00039986]
[1741000883834,1.01518989,92984.0,92983.0,0.00039986]
[1741000885352,1.01518989,92984.0,92983.0,0.00239986]
[1741000885617,1.01518989,92984.0,92983.0,0.00339986]
[1741000888303,1.04334989,92984.0,92983.0,0.00339986]
[1741000888519,0.99334989,92984.0,92983.0,0.00339986]
[1741000888722,0.88978989,92984.0,92983.0,0.00339986]
[1741000888923,0.65666493,92984.0,92983.0,0.00339986]
[1741000889304,0.95666493,92984.0,92983.0,0.00339986]
[1741000892370,0.90666493,92984.0,92983.0,0.00339986]
[1741000892573,0.95666493,92984.0,92983.0,0.00339986]
[1741000892748,1.03478493,92984.0,92983.0,0.00339986]
[1741000892968,0.261321,92982.0,92981.0,6.6e-07]
[1741000893315,0.561321,92982.0,92981.0,0.00012067]
[1741000893453,0.69465277,92982.0,92981.0,6.7e-07]
[1741000893849,1.01875277,92982.0,92981.0,6.7e-07]
[1741000894269,0.91875277,92982.0,92981.0,6.7e-07]
[1741000894467,1.01875277,92982.0,92981.0,6.7e-07]
[1741000894675,0.561354,92963.0,92962.0,0.00201]
[1741000894889,0.93909381,92963.0,92962.0,0.00201]
[1741000895087,0.88909381,92963.0,92962.0,0.00201]
[1741000895286,0.95597469,92963.0,92962.0,0.00201]
[1741000895944,0.95597469,92963.0,92962.0,0.00801]
[1741000896147,0.95897469,92963.0,92962.0,0.00801]
[1741000896524,1.0758404,92963.0,92962.0,0.00801]
[1741000896697,0.561408,92932.0,92931.0,0.0004]
[1741000896903,0.56723298,92932.0,92931.0,0.0005201]
[1741000897600,0.57791917,92932.0,92931.0,0.0005201]
[1741000898423,0.57791917,92932.0,92931.0,0.0075201]
[1741000898961,0.62761917,92932.0,92931.0,0.0075201]
[1741000899107,0.95171917,92932.0,92931.0,1e-07]
[1741000899306,1.13903561,92932.0,92931.0,1e-07]
[1741000899493,1.08011917,92932.0,92931.0,1e-07]
[1741000899697,1.09700657,92932.0,92931.0,1e-07]
[1741000899898,0.46145,92908.0,92907.0,0.0001703]
[1741000900094,0.64576286,92908.0,92907.0,0.00057081]
[1741000901060,0.56265143,92908.0,92907.0,0.00057081]
[1741000901261,0.66265143,92908.0,92907.0,0.00357081]
[1741000901663,0.66265143,92908.0,92907.0,0.00057081]
[1741000902228,0.66265143,92908.0,92907.0,0.00357081]
[1741000902969,0.98675143,92908.0,92907.0,0.00357081]
[1741000903146,1.03505143,92908.0,92907.0,0.00357081]
[1741000903699,1.05502509,92908.0,92907.0,0.00357081]
[1741000904185,0.92650509,92908.0,92907.0,0.00057081]
[1741000904400,1.00502509,92908.0,92907.0,0.00057081]
[1741000904536,0.98505143,92908.0,92907.0,0.00057081]
[1741000904948,0.96820286,92908.0,92907.0,0.00057081]
[1741000905150,0.87190286,92908.0,92907.0,0.00057081]
[1741000905338,0.62190286,92908.0,92907.0,0.00157081]
[1741000905540,0.84334286,92908.0,92907.0,0.00157081]
[1741000905737,0.43631286,92908.0,92907.0,0.00057081]
[1741000906119,0.43531286,92908.0,92907.0,0.00057081]
[1741000906320,0.00579286,92908.0,92907.0,0.00057081]
[1741000906456,0.05,92908.0,92907.0,0.16202181]
[1741000906657,0.05,92912.0,92911.0,0.161444]
[1741000906864,0.05,92908.0,92907.0,0.00057081]
[1741000907204,0.05566994,92908.0,92907.0,0.00057081]
[1741000907445,0.00566994,92908.0,92907.0,0.16202181]
[1741000907650,0.00566994,92908.0,92907.0,0.17656266]
[1741000907857,0.05,92912.0,92911.0,0.215258]
[1741000908075,0.05,92912.0,92911.0,0.214258]
[1741000909034,0.05,92912.0,92911.0,0.216258]
[1741000909254,0.05,92912.0,92911.0,0.002]
[1741000909441,0.261443,92912.0,92911.0,0.002]
[1741000909667,0.2671896,92912.0,92911.0,0.002]
[1741000909882,1.0171296,92912.0,92911.0,0.002]
[1741000910238,0.9671296,92912.0,92911.0,0.002]
[1741000911007,0.51145,92908.0,92907.0,0.00057081]
[1741000911152,0.46145,92908.0,92907.0,0.00057081]
[1741000911362,0.46754482,92908.0,92907.0,0.00057081]
[1741000911737,0.48443533,92908.0,92907.0,0.00057081]
[1741000911930,0.53443533,92908.0,92907.0,0.00057081]
[1741000912258,0.58443533,92908.0,92907.0,0.00057081]
[1741000912463,0.58543533,92908.0,92907.0,0.00057081]
[1741000913526,0.53543533,92908.0,92907.0,0.00057081]
[1741000913679,0.90953533,92908.0,92907.0,0.00057081]
[1741000914089,0.91053533,92908.0,92907.0,0.00057081]
[1741000914712,0.86053533,92908.0,92907.0,0.00057081]
[1741000914940,0.91053533,92908.0,92907.0,0.00057081]
[1741000915487,0.86053533,92908.0,92907.0,0.00057081]
[1741000915700,0.92240482,92908.0,92907.0,0.00057081]
[1741000915837,0.67240482,92908.0,92907.0,0.00057081]
[1741000916039,0.59364482,92908.0,92907.0,0.00057081]
[1741000916373,0.29830482,92908.0,92907.0,0.00057081]
[1741000916591,0.24830482,92908.0,92907.0,0.00057081]
[1741000917075,0.29730482,92908.0,92907.0,0.00057081]
[1741000917283,0.18585482,92908.0,92907.0,0.00057081]
[1741000917459,0.05809482,92908.0,92907.0,0.00057081]
[1741000917657,0.00809482,92908.0,92907.0,0.16202181]
[1741000917901,0.00809482,92908.0,92907.0,0.16352858]
[1741000918106,0.051,92908.0,92907.0,0.16202181]
[1741000918324,0.05,92916.0,92908.0,0.215266]
[1741000918564,0.05,92918.0,92917.0,0.161434]
[1741000918793,0.05,92922.0,92907.0,0.00357081]
[1741000919000,0.05,92919.0,92908.0,0.00150658]
[1741000919235,0.05,92920.0,92908.0,0.00150658]
[1741000919438,0.01688417,92923.0,92922.0,0.161425]
[1741000920160,0.01688417,92923.0,92913.0,0.01454085]
[1741000920366,0.01688417,92923.0,92922.0,0.161425]
[1741000920598,0.05,92916.0,92909.0,0.0753]
[1741000920810,0.01688417,92923.0,92908.0,0.002]
[1741000921013,0.01688417,92923.0,92922.0,0.161425]
[1741000921185,0.00034,92931.0,92930.0,0.237411]
[1741000921835,0.00034,92931.0,92930.0,0.537411]
[1741000921979,0.00034,92931.0,92930.0,0.536411]
[1741000922450,0.00034,92931.0,92930.0,0.55095185]
[1741000922827,0.00034,92931.0,92930.0,0.25395185]
[1741000923038,0.00034,92931.0,92930.0,0.25095185]
[1741000923455,0.00134,92931.0,92930.0,0.25395185]
[1741000924255,0.00234,92931.0,92930.0,0.25995185]
[1741000924874,0.05353624,93051.0,92930.0,0.25995185]
[1741000924875,0.05,92952.0,92931.0,0.01454085]
[1741000925037,0.05,92977.0,92976.0,0.161331]
[1741000925234,0.0003398,92984.0,92983.0,0.161319]
[1741000925477,0.0003398,92984.0,92983.0,0.17736517]
[1741000925707,0.0003398,92984.0,92983.0,0.18608643]
[1741000925946,0.0003398,92984.0,92983.0,0.48608643]
[1741000926220,0.0004597,92984.0,92983.0,0.85878111]
[1741000926669,0.0004597,92984.0,92983.0,0.55878111]
[1741000926884,0.0014597,92984.0,92983.0,0.51468111]
[1741000927299,0.0024597,92984.0,92983.0,0.50914026]
[1741000927499,0.0024597,92984.0,92983.0,0.171319]
[1741000927749,0.2137777,92984.0,92983.0,0.01]
[1741000927960,0.2627777,92984.0,92983.0,0.003]
[1741000928151,0.2637777,92984.0,92983.0,0.01]
[1741000928350,0.2627777,92984.0,92983.0,0.007]
[1741000928552,0.2637777,92984.0,92983.0,0.014]
[1741000928763,0.2637777,92984.0,92983.0,0.007]
[1741000928764,0.2627777,92984.0,92983.0,0.007]
[1741000929105,0.05,92950.0,92948.0,0.01058394]
[1741000929236,0.211378,92949.0,92948.0,0.01058394]
[1741000929437,0.05,92949.0,92948.0,0.01058394]
[1741000929664,0.05,92943.0,92934.0,0.215206]
[1741000929976,0.05,92943.0,92933.0,0.09588093]
[1741000930262,0.05,92943.0,92942.0,0.16139]
[1741000930417,0.05,92943.0,92933.0,0.09588093]
[1741000930418,0.05011981,92943.0,92933.0,0.09588093]
[1741000930621,0.05011981,92943.0,92940.0,0.161394]
[1741000930821,0.05,92939.0,92935.0,0.161402]
[1741000930998,0.05,92939.0,92934.0,0.007]
[1741000931201,0.05,92935.0,92934.0,0.007]
[1741000931604,0.211404,92934.0,92933.0,0.09588093]
[1741000931807,0.05,92934.0,92933.0,0.25728693]
[1741000932052,0.05,92940.0,92936.0,0.161401]
[1741000932053,0.05,92937.0,92936.0,0.161401]
[1741000932621,0.05,92937.0,92931.0,0.01454085]
[1741000932816,0.05,92931.0,92918.0,0.215241]
[1741000933016,0.05,92931.0,92905.0,0.0481]
[1741000933017,0.26141,92931.0,92905.0,0.0481]
[1741000933226,0.26141,92931.0,92919.0,0.01454085]
[1741000933452,0.26141,92931.0,92909.0,0.215263]
[1741000933639,0.26141,92931.0,92920.0,0.161429]
[1741000933919,0.27829186,92931.0,92918.0,0.215241]
[1741000934116,0.01688186,92931.0,92930.0,0.161581]
[1741000934263,0.05011981,92943.0,92942.0,0.16139]
[1741000934466,0.00011981,92943.0,92942.0,0.16039]
[1741000934877,0.00011981,92943.0,92942.0,0.17493085]
[1741000935233,0.05,92942.0,92923.0,0.0815]
[1741000935429,0.00011981,92943.0,92923.0,0.0815]
[1741000935430,0.05,92937.0,92936.0,0.161401]
[1741000935634,0.05,92936.0,92927.0,0.215221]
[1741000935835,0.05011981,92943.0,92942.0,0.16139]
[1741000936057,0.05011981,92943.0,92942.0,0.17593085]
[1741000936266,0.05,92940.0,92939.0,0.161396]
[1741000936466,0.05,92940.0,92938.0,0.01454085]
[1741000936683,0.05,92937.0,92930.0,0.00017]
[1741000936903,0.001,92936.0,92935.0,0.161403]
[1741000937196,0.05,92942.0,92930.0,0.00017]
[1741000937197,0.05,92931.0,92930.0,0.00017]
[1741000937444,0.21141,92931.0,92930.0,0.00017]
[1741000937676,0.05,92931.0,92930.0,0.00017]
[1741000937846,0.05,92931.0,92930.0,0.161581]
[1741000938209,0.001,92931.0,92930.0,0.18312185]
[1741000939950,0.002,92931.0,92930.0,0.19012185]
[1741000942833,0.052,92931.0,92930.0,0.01417]
[1741000943617,0.21341,92931.0,92930.0,0.01417]
[1741000944163,0.26341,92931.0,92930.0,0.01417]
[1741000944406,0.102,92931.0,92930.0,0.01417]
[1741000944612,0.26341,92931.0,92930.0,0.01417]
[1741000944784,0.102,92931.0,92930.0,0.01417]
[1741000945253,0.26341,92931.0,92930.0,0.01417]
[1741000945609,0.26141,92931.0,92930.0,0.00017]
[1741000946011,0.64029,92931.0,92930.0,0.00517]
[1741000946219,0.64029,92931.0,92930.0,0.00317]
[1741000946413,1.08639,92931.0,92930.0,0.00317]
[1741000946820,1.08639,92931.0,92930.0,0.00017]
[1741000947032,0.84818,92931.0,92930.0,0.00417]
[1741000947238,0.95959,92931.0,92930.0,0.00617]
[1741000947675,0.54818,92931.0,92930.0,0.00617]
[1741000947829,0.66439,92931.0,92930.0,0.00617]
[1741000948026,0.68127331,92931.0,92930.0,0.00617]
[1741000949308,0.63127331,92931.0,92930.0,0.00217]
[1741000949480,0.46986331,92931.0,92930.0,0.00017]
[1741000949695,0.46986331,92931.0,92930.0,0.00517]
[1741000950056,0.46986331,92931.0,92930.0,0.00017]
[1741000950349,0.34098331,92931.0,92930.0,0.164581]
[1741000950610,0.34098331,92931.0,92930.0,0.18112185]
[1741000950775,0.60239331,92931.0,92930.0,0.00317]
[1741000950981,0.60239331,92931.0,92930.0,0.00417]
[1741000951287,0.60339331,92931.0,92930.0,0.00517]
[1741000952011,0.90339331,92931.0,92930.0,0.00517]
[1741000952262,0.85339331,92931.0,92930.0,0.00517]
[1741000952495,0.39198331,92931.0,92930.0,0.00517]
[1741000952948,0.39198331,92931.0,92930.0,0.01017]
[1741000953172,0.39098331,92931.0,92930.0,0.161581]
[1741000953396,0.34098331,92931.0,92930.0,0.166581]
[1741000953615,0.60239331,92931.0,92930.0,0.00517]
[1741000953843,0.60239331,92931.0,92930.0,0.00017]
[1741000954076,0.44098331,92931.0,92930.0,0.00417]
[1741000954298,0.39198331,92931.0,92930.0,0.171581]
[1741000954533,0.44198331,92931.0,92930.0,0.171581]
[1741000954757,0.39198331,92931.0,92930.0,0.167581]
[1741000955811,0.4251,92931.0,92930.0,0.167581]
[1741000956215,0.4251,92931.0,92930.0,0.00617]
[1741000956428,0.58651,92931.0,92930.0,0.00617]
[1741000956857,0.58651,92931.0,92930.0,0.01117]
[1741000957049,0.58651,92931.0,92930.0,0.00617]
[1741000957399,0.4251,92931.0,92930.0,0.01017]
[1741000957603,1e-06,92931.0,92930.0,0.48612185]
[1741000957952,0.02,92940.0,92939.0,0.461396]
[1741000958102,4.1e-07,92943.0,92942.0,0.3]
[1741000958447,4.1e-07,92943.0,92942.0,0.47593085]
[1741000958851,4.1e-07,92943.0,92942.0,0.17593085]
[1741000960946,4.1e-07,92943.0,92942.0,0.18293085]
[1741000961144,0.00100041,92943.0,92942.0,0.18293085]
[1741000961571,0.00100041,92943.0,92942.0,0.02854085]
[1741000961768,0.00100041,92943.0,92942.0,0.18993085]
[1741000962370,0.00100041,92943.0,92942.0,0.02854085]
[1741000962822,0.00100041,92943.0,92942.0,0.18993085]
[1741000966025,0.00134101,92943.0,92942.0,0.18993085]
[1741000966405,0.00134101,92943.0,92942.0,0.19143679]
[1741000967910,0.00134101,92943.0,92942.0,0.20201033]
[1741000968126,0.00134101,92943.0,92942.0,0.57841033]
[1741000968324,0.00134101,92943.0,92942.0,0.57690439]
[1741000970319,0.00134101,92943.0,92942.0,0.48993085]
[1741000970531,0.00134101,92943.0,92942.0,0.18993085]
[1741000970734,0.00134101,92943.0,92942.0,0.014]
[1741000970960,0.21273001,92943.0,92942.0,0.014]
[1741000971163,0.26273001,92943.0,92942.0,0.014]
[1741000971947,0.58683001,92943.0,92942.0,0.014]
[1741000972193,0.58683001,92943.0,92942.0,0.007]
[1741000972194,0.91364431,92943.0,92942.0,0.007]
[1741000972390,0.96164431,92943.0,92942.0,0.014]
[1741000973005,0.96164431,92943.0,92942.0,0.007]
[1741000973202,0.95071036,92943.0,92942.0,0.008]
[1741000973891,0.95071036,92943.0,92942.0,0.001]
[1741000974320,0.95071036,92943.0,92942.0,0.002]
[1741000974551,0.95071036,92943.0,92942.0,0.001]
[1741000974754,0.90071036,92943.0,92942.0,0.001]
[1741000974898,0.95071036,92943.0,92942.0,0.002]
[1741000975097,0.90071036,92943.0,92942.0,0.002]
[1741000975352,0.95071036,92943.0,92942.0,0.002]
[1741000975587,0.85071036,92943.0,92942.0,0.002]
[1741000975767,0.93383001,92943.0,92942.0,0.002]
[1741000977659,0.93383001,92943.0,92942.0,0.001]
[1741000978499,0.93483001,92943.0,92942.0,0.0011703]
[1741000978823,0.93483001,92943.0,92942.0,0.0001703]
[1741000979037,0.95171316,92943.0,92942.0,0.0001703]
[1741000981303,0.85171316,92943.0,92942.0,0.0001703]
[1741000981498,0.98003316,92943.0,92942.0,0.0001703]
[1741000982290,0.97903316,92943.0,92942.0,0.0001703]
[1741000982651,1.02903316,92943.0,92942.0,0.0001703]
[1741000982870,0.97903316,92943.0,92942.0,0.0001703]
[1741000983139,0.97903316,92943.0,92942.0,0.0031703]
[1741000983503,1.02903316,92943.0,92942.0,0.0031703]
[1741000984713,1.02903316,92943.0,92942.0,0.0041703]
[1741000984937,0.97903316,92943.0,92942.0,0.0041703]
[1741000985143,1.02903316,92943.0,92942.0,0.0041703]
[1741000985324,1.02903316,92943.0,92942.0,0.0031703]
[1741000985737,1.02903316,92943.0,92942.0,0.0051703]
[1741000986178,0.88103316,92943.0,92942.0,0.0051703]
[1741000986408,0.37444101,92943.0,92942.0,0.1665603]
[1741000986647,0.05034101,92943.0,92942.0,0.1665603]
[1741000986811,0.10034101,92943.0,92942.0,0.0051703]
[1741000987041,0.10034101,92943.0,92942.0,0.1665603]
[1741000987524,0.10034101,92943.0,92942.0,0.0051703]
[1741000987716,0.26173001,92943.0,92942.0,0.0051703]
[1741000987859,0.10034101,92943.0,92942.0,0.0001703]
[1741000988060,0.26173001,92943.0,92942.0,0.0001703]
[1741000988264,0.26173001,92943.0,92942.0,0.0031703]
[1741000988467,0.56173001,92943.0,92942.0,0.0051703]
[1741000988685,0.56173001,92943.0,92942.0,0.0001703]
[1741000988890,0.51173001,92943.0,92942.0,0.0001703]
[1741000989182,0.56173001,92943.0,92942.0,0.0121703]
[1741000989381,0.56173001,92943.0,92942.0,0.0071703]
[1741000989582,0.56173001,92943.0,92942.0,0.0001703]
[1741000989823,0.90271092,92943.0,92942.0,0.0071703]
[1741000990213,0.98131092,92943.0,92942.0,0.0071703]
[1741000991284,0.98131092,92943.0,92942.0,0.0001703]
[1741000991410,0.98631092,92943.0,92942.0,0.0001703]
[1741000991614,1.06167092,92943.0,92942.0,0.0001703]
[1741000991801,1.05967092,92943.0,92942.0,0.0001703]
[1741000992003,1.06267092,92943.0,92942.0,0.0001703]
[1741000992320,1.06467092,92943.0,92942.0,0.0001703]
[1741000992524,0.56141,92931.0,92930.0,0.00017]
[1741000992723,0.56145,92908.0,92891.0,0.0004]
[1741000992946,0.88555,92908.0,92891.0,0.0004]
[1741000993150,0.9024365,92908.0,92891.0,0.0004]
[1741000993560,0.91048512,92908.0,92891.0,0.0004]
[1741000994114,0.92120022,92908.0,92907.0,0.00057081]
[1741000994322,0.92120022,92908.0,92907.0,8.1e-07]
[1741000994323,0.97120022,92908.0,92907.0,8.1e-07]
[1741000994477,0.97120022,92908.0,92907.0,0.00700081]
[1741000994478,1.09560022,92908.0,92907.0,0.00700081]
[1741000994884,1.09560022,92908.0,92907.0,8.1e-07]
[1741000994885,1.09460022,92908.0,92907.0,8.1e-07]
[1741000995197,1.04560022,92908.0,92907.0,8.1e-07]
[1741000995496,1.04460022,92908.0,92907.0,8.1e-07]
[1741000995709,0.97971372,92908.0,92907.0,8.1e-07]
[1741000995916,1.0216651,92908.0,92907.0,8.1e-07]
[1741000996112,0.511483,92889.0,92888.0,8.201e-05]
[1741000996265,0.561483,92889.0,92888.0,0.00020141]
[1741000998119,0.885583,92889.0,92888.0,0.00020141]
[1741000998324,0.885583,92889.0,92888.0,0.00320141]
[1741000998479,0.885583,92889.0,92888.0,0.00820141]
[1741000998693,0.90247604,92889.0,92888.0,0.00520141]
[1741000998895,0.90247604,92889.0,92888.0,0.00020141]
[1741000999147,0.90247604,92889.0,92888.0,0.00320141]
[1741000999375,1.03057604,92889.0,92888.0,4.1e-07]
[1741000999889,1.23949248,92889.0,92888.0,4.1e-07]
[1741001000019,1.13057604,92889.0,92888.0,4.1e-07]
[1741001000226,1.14511689,92889.0,92888.0,4.1e-07]
[1741001000436,0.561516,92870.0,92869.0,0.0001702]
[1741001000641,0.963976,92870.0,92869.0,0.00029033]
[1741001001144,0.98087355,92870.0,92869.0,0.00029033]
[1741001001344,0.98087355,92870.0,92868.0,6.3e-07]
[1741001001345,0.511517,92869.0,92868.0,6.3e-07]
[1741001002244,0.561517,92869.0,92868.0,6.3e-07]
[1741001002658,0.511517,92869.0,92868.0,6.3e-07]
[1741001002866,0.590037,92869.0,92868.0,6.3e-07]
[1741001003193,0.240197,92869.0,92868.0,6.3e-07]
[1741001003394,0.290197,92869.0,92868.0,6.3e-07]
[1741001003834,0.294197,92869.0,92868.0,6.3e-07]
[1741001004003,0.297197,92869.0,92868.0,6.3e-07]
[1741001004183,0.340197,92869.0,92868.0,6.3e-07]
[1741001005238,0.290197,92869.0,92868.0,6.3e-07]
[1741001005751,0.12868,92869.0,92868.0,0.16151963]
[1741001005967,0.12868,92869.0,92868.0,6.3e-07]
[1741001006171,0.640197,92869.0,92868.0,6.3e-07]
[1741001006391,0.590197,92869.0,92868.0,6.3e-07]
[1741001006618,0.640197,92869.0,92868.0,6.3e-07]
[1741001006849,0.12868,92869.0,92868.0,6.3e-07]
[1741001007072,0.17868,92869.0,92868.0,6.3e-07]
[1741001007995,0.00011988,92870.0,92869.0,0.161517]
[1741001008652,0.00011988,92870.0,92869.0,0.1630244]
[1741001008886,0.00011988,92870.0,92868.0,6.3e-07]
[1741001008887,0.05,92869.0,92868.0,6.3e-07]
[1741001009129,0.211517,92869.0,92868.0,6.3e-07]
[1741001009602,0.261517,92869.0,92868.0,6.3e-07]
[1741001010992,0.561517,92869.0,92868.0,0.00200063]
[1741001011425,0.561517,92869.0,92868.0,6.3e-07]
[1741001011840,0.561517,92869.0,92868.0,0.00200063]
[1741001012844,0.561517,92869.0,92868.0,6.3e-07]
[1741001014886,0.885617,92869.0,92868.0,6.3e-07]
[1741001015724,0.835617,92869.0,92868.0,6.3e-07]
[1741001016098,0.785617,92869.0,92868.0,6.3e-07]
[1741001016259,0.835617,92869.0,92868.0,6.3e-07]
[1741001016776,0.4,92869.0,92868.0,6.3e-07]
[1741001016956,0.00011988,92870.0,92868.0,6.3e-07]
[1741001017339,0.05011988,92870.0,92869.0,0.161517]
[1741001017451,0.10011988,92870.0,92869.0,0.161517]
[1741001017662,0.05011988,92870.0,92869.0,0.161517]
[1741001018104,0.10011988,92870.0,92869.0,0.161517]
[1741001018518,0.10111988,92870.0,92868.0,0.16151863]
[1741001018688,0.10111988,92870.0,92869.0,0.161517]
[1741001018888,0.05111988,92870.0,92869.0,0.161517]
[1741001019893,0.10211988,92870.0,92869.0,0.161517]
[1741001020092,0.10211988,92870.0,92868.0,0.16651963]
[1741001020298,0.05,92869.0,92868.0,6.3e-07]
[1741001020495,0.211517,92869.0,92868.0,6.3e-07]
[1741001020940,0.261517,92869.0,92868.0,6.3e-07]
[1741001021971,0.262517,92869.0,92868.0,0.00500063]
[1741001022175,0.101,92869.0,92868.0,0.16651963]
[1741001022380,0.101,92869.0,92868.0,0.00500063]
[1741001022766,0.051,92869.0,92868.0,0.16651963]
[1741001022948,0.101,92869.0,92868.0,0.16651963]
[1741001023466,0.263517,92869.0,92868.0,0.00500063]
[1741001023895,0.102,92869.0,92868.0,0.00500063]
[1741001026837,0.102341,92869.0,92868.0,0.00500063]
[1741001027110,0.102341,92869.0,92868.0,0.16651963]
[1741001027586,0.102341,92869.0,92868.0,0.00500063]
[1741001028327,0.002341,92869.0,92868.0,0.16651963]
[1741001028552,0.002341,92869.0,92868.0,0.25926048]
[1741001029941,0.000341,92869.0,92868.0,0.25426048]
[1741001030175,0.000341,92869.0,92868.0,0.25726048]
[1741001030644,0.000341,92869.0,92868.0,0.25426048]
[1741001030841,0.002341,92869.0,92868.0,0.26326048]
[1741001031299,0.001341,92869.0,92868.0,0.25726048]
[1741001031526,0.002341,92869.0,92868.0,0.26426048]
[1741001033891,0.002341,92869.0,92868.0,0.56426048]
[1741001034223,0.002341,92869.0,92868.0,0.67796048]
[1741001034437,8.8e-07,92870.0,92869.0,0.47605785]
[1741001034639,8.8e-07,92870.0,92869.0,0.58975785]
[1741001035042,8.8e-07,92870.0,92869.0,0.91685785]
[1741001036102,8.8e-07,92870.0,92869.0,0.80315785]
[1741001036300,0.00100088,92870.0,92869.0,0.795617]
[1741001036519,0.00200088,92870.0,92869.0,0.799617]
[1741001036865,0.00200088,92870.0,92869.0,0.51415785]
[1741001038014,0.00200088,92870.0,92869.0,0.53421253]
[1741001038561,0.00234188,92870.0,92869.0,0.53421253]
[1741001041031,0.00234188,92870.0,92869.0,0.03105468]
[1741001041437,0.00234188,92870.0,92869.0,0.19257168]
[1741001041896,0.00234188,92870.0,92869.0,0.172517]
[1741001042146,0.00234188,92870.0,92869.0,0.18856523]
[1741001042382,0.00234188,92870.0,92869.0,0.18705785]
[1741001043076,0.00234188,92870.0,92869.0,0.172517]
[1741001044208,0.00234188,92870.0,92869.0,0.011]
[1741001044423,0.00234188,92870.0,92869.0,0.172517]
[1741001044639,0.00234188,92870.0,92869.0,0.18705785]
[1741001045982,0.00234188,92870.0,92869.0,0.20713693]
[1741001046184,0.00234188,92870.0,92869.0,0.19259608]
[1741001047195,0.00234188,92870.0,92869.0,0.20713693]
[1741001047507,0.00234188,92870.0,92869.0,0.18705785]
[1741001048674,0.00234188,92870.0,92869.0,0.20713693]
[1741001050057,0.00234188,92870.0,92869.0,0.20730743]
[1741001051827,0.00234188,92870.0,92869.0,0.28550743]
[1741001053129,0.00234188,92870.0,92869.0,0.20730743]
[1741001055626,0.00234188,92870.0,92869.0,0.19276658]